[Event "CZE-ch U10 Open 2023"]
[Site "Teplice"]
[Date "2023.03.13"]
[Round "4.2"]
[White "Kozusnik, Jan"]
[Black "Trejbal, Jindrich"]
[Result "1-0"]
[ECO "C50"]
[WhiteElo "1286"]
[BlackElo "1937"]
[Annotator "TA"]
[PlyCount "113"]
[EventDate "2023.03.09"]
[EventType "swiss"]
[EventCountry "CZE"]
[SourceTitle "playchess.com"]
[Source "ChessBase"]
[SourceQuality "1"]
[TimeControl "40/5400+30:1800+30"]

{[%evp 14,113,43,8,47,0,3,-122,25,31,24,28,14,-247,70,49,61,50,144,117,130,132,129,124,175,170,215,214,377,365,559,581,567,562,572,577,556,551,539,535,804,793,792,722,803,793,841,837,827,823,823,802,836,836,830,822,822,797,816,792,773,739,778,775,928,789,822,739,863,687,676,671,698,686,716,711,822,819,820,816,808,687,679,675,799,778,29981,29982,29985,29985,29985,29986,29987,29988,29991,29989,29990,29990,29993,29991,29993,29993]} 1. e4 {[%emt 0:00:06]} e5 {[%emt 0:00:38]} 2. Nf3 {[%emt 0:00:11]} Nc6 {[%emt 0:00:08]} 3. Bc4 {[%emt 0:00:08]} Bc5 {[%emt 0:00:28]} 4. d3 {[%emt 0:00:16]} h6 {[%emt 0:00:37]} 5. c3 {[%emt 0:00:40]} Nf6 {[%emt 0:01:24]} 6. O-O {[%emt 0:00:14]} d6 {[%emt 0:02:01]} 7. Nbd2 {[%emt 0:00:46]} O-O {[%emt 0:01:51]} 8. Bb3 {[%emt 0:00:31]} (8. b4 $5 {[%cal Rb4c5]} Bb6 9. a4 $11) 8... Be6 {[%emt 0:03:16] C54: Giuoco Piano: 4 c3 Nf6, main lines with 5 d4 and 5 d3.} 9. Bc2 {[%emt 0:00:38]} (9. Bxe6 $14 {was preferrable.} fxe6 10. b4) 9... Qd7 {[%emt 0:06:09]} 10. Re1 {[%emt 0:01:20] [#]} (10. Ba4 $11 {keeps the balance.}) 10... Bg4 $146 {[%emt 0:02:13]} (10... Ng4 $17 11. d4 exd4) ({Predecessor:} 10... Ne7 11. Nf1 Ng4 12. Ne3 Nxe3 13. Bxe3 Bxe3 14. fxe3 Bg4 15. Rf1 Ng6 16. Qe1 f5 17. exf5 Bxf5 {1-0 Adam,E (1354)-Calabrasa,E Arcelor Mittal op blitz 2020 (9)}) 11. h3 {[%emt 0:00:22]} Bxh3 {[%emt 0:01:26][%mdl 64] [#] Demolition} 12. gxh3 {[%emt 0:01:15]} Qxh3 {[%emt 0:00:35][%cal Oc5f2] ( -> ...Bxf2+!)} 13. Nh2 $2 {[%emt 0:00:35][%mdl 8192]} (13. Nf1 $11 {and White has nothing to worry.}) 13... Qg3+ $2 {[%emt 0:00:53]} (13... Bxf2+ $1 $19 14. Kh1 Nh5) 14. Kh1 $14 {[%emt 0:01:48]} Bxf2 {[%emt 0:09:02]} 15. Rf1 {[%emt 0:02:01]} h5 {[%emt 0:07:24] White leaves nothing to chance now.} (15... Ne7 $14) 16. Qf3 $36 {[%emt 0:01:16][%mdl 2048] Black is under strong pressure. Chess con chili.} Qxf3+ {[%emt 0:04:23]} 17. Ndxf3 {[%emt 0:00:17]} Bg3 {[%emt 0:02:06]} 18. Be3 {[%emt 0:01:09][%cal Bc1e3,Be3f2,Bf2h4,Bh4e7][%mdl 32]} h4 {[%emt 0:02:25]} (18... Kh7 $16 19. Rg1 h4 20. Nxh4 Bxh4) 19. Bf2 $18 {[%emt 0:00:59]} Ne7 {[%emt 0:04:26]} 20. Nxh4 {[%emt 0:00:36]} Bxh4 {[%emt 0:00:18]} (20... Bf4 21. Rad1 Rae8) 21. Bxh4 {[%emt 0:00:07]} Nh5 {[%emt 0:01:03]} (21... Rae8 {was worth a try.} 22. Bxf6 gxf6 23. Rxf6 Kg7) 22. Bxe7 {[%emt 0:01:15]} Ng3+ {[%emt 0:01:12]} 23. Kg2 {[%emt 0:00:09]} Nxf1 {[%emt 0:00:12]} 24. Nxf1 {[%emt 0:00:12]} Rfe8 {[%emt 0:00:25]} 25. Bh4 {[%emt 0:00:20]} Re6 {[%emt 0:00:26]} 26. Ne3 {[%emt 0:00:34]} Kh7 {[%emt 0:03:52]} 27. Bb3 {[%emt 0:01:07]} Rg6+ {[%emt 0:00:27]} 28. Bg3 {[%emt 0:00:17]} Rf8 {[%emt 0:01:37]} 29. Nf5 {[%emt 0:00:29]} Rg5 {[%emt 0:01:02]} 30. Rh1+ {[%emt 0:00:24]} Kg6 {[%emt 0:00:20]} 31. Ne7+ {[%emt 0:00:58]} Kf6 {[%emt 0:00:16]} 32. Nd5+ {[%emt 0:00:22]} Ke6 {[%emt 0:05:18]} 33. Nxc7+ {[%emt 0:00:14][%mdl 64] [#] Discovered Attack (Double check)} Kd7 {[%emt 0:00:13]} 34. Nd5 {[%emt 0:00:22]} f5 {[%emt 0:01:01]} 35. exf5 {[%emt 0:01:04]} Rfxf5 {[%emt 0:02:08]} 36. Ne3 {[%emt 0:01:55]} Rf6 {[%emt 0:02:25]} 37. Bd5 {[%emt 0:00:59]} b5 {[%emt 0:01:52]} 38. Be4 {[%emt 0:00:27]} a5 {[%emt 0:03:15]} 39. Nd5 {[%emt 0:00:47]} Rf8 {[%emt 0:01:04]} 40. Bf3 {[%emt 0:02:29]} Kc6 {[%emt 0:04:47]} 41. Nf4+ {[%emt 0:31:17]} Kd7 {[%emt 0:30:16]} 42. Ne2 {[%emt 0:01:24]} Ke6 {[%emt 0:02:12]} 43. Re1 {[%emt 0:01:47]} Kd7 {[%emt 0:03:45]} 44. d4 {[%emt 0:01:27]} Kc7 {[%emt 0:05:14]} 45. dxe5 {[%emt 0:00:56]} dxe5 {[%emt 0:00:51]} 46. Ng1 {[%emt 0:00:58]} Rd8 {[%emt 0:03:04]} 47. Rd1 {[%emt 0:01:07]} Rxd1 {[%emt 0:00:50]} 48. Bxd1 {[%emt 0:00:13]} Kc6 {[%emt 0:01:25]} 49. Nf3 {[%emt 0:00:35][%csl LRe5,LRg5]} Kc5 {[%emt 0:01:27]} 50. Nxg5 {[%emt 0:00:19] White mates.} b4 {[%emt 0:00:17]} 51. Bxe5 {[%emt 0:00:34]} Kc4 {[%emt 0:00:59]} 52. cxb4 {[%emt 0:00:41]} axb4 {[%emt 0:00:38]} 53. Bxg7 {[%emt 0:00:33]} Kd3 {[%emt 0:00:41]} 54. Bf8 {[%emt 0:01:42]} Kd2 {[%emt 0:00:46]} 55. Bxb4+ {[%emt 0:00:13]} Kc1 {[%emt 0:00:20]} 56. a4 {[%emt 0:00:50][%cal Ba2a4,Ba4a5][%mdl 32]} Kxb2 {[%emt 0:00:15]} 57. a5 {[%emt 0:01:06] Weighted Error Value: White=0.46/Black=0.74} 1-0

[Event "CZE-ch U10 Open 2023"]
[Site "Teplice"]
[Date "2023.03.13"]
[Round "4.3"]
[White "Skoloud, Josef"]
[Black "Velim, Vojtech"]
[Result "0-1"]
[ECO "B14"]
[WhiteElo "1090"]
[BlackElo "1369"]
[Annotator "NA RC COMBH"]
[PlyCount "80"]
[EventDate "2023.03.09"]
[EventType "swiss"]
[EventCountry "CZE"]
[SourceTitle "playchess.com"]
[Source "ChessBase"]
[SourceQuality "1"]
[TimeControl "40/5400+30:1800+30"]

1. e4 {[%emt 0:00:03]} c6 {[%emt 0:00:06]} 2. d4 {[%emt 0:00:05]} d5 {[%emt 0:00:05]} 3. exd5 {[%emt 0:00:07]} cxd5 {[%emt 0:00:08]} 4. c4 {[%emt 0:00:08]} Nf6 {[%emt 0:00:07]} 5. Nc3 {[%emt 0:00:34]} e6 {[%emt 0:00:33]} 6. Bg5 {[%emt 0:00:37]} Be7 {[%emt 0:00:56]} 7. Nf3 {[%emt 0:01:52]} dxc4 {[%emt 0:01:15]} 8. Bxc4 {[%emt 0:01:35]} Nc6 {[%emt 0:01:16]} 9. O-O {[%emt 0:03:35]} O-O {[%emt 0:03:02]} 10. Bf4 {[%emt 0:02:04]} Bd6 {[%emt 0:05:56]} 11. Qd2 {[%emt 0:04:30]} Ne7 {[%emt 0:07:42]} 12. Bg5 {[%emt 0:05:28]} Ng6 {[%emt 0:04:46]} 13. Rac1 {[%emt 0:08:00]} h6 {[%emt 0:04:27]} 14. Be3 {[%emt 0:00:56]} Bd7 {[%emt 0:04:29]} 15. Rfe1 {[%emt 0:06:46]} Rc8 {[%emt 0:01:44]} 16. Bd3 {[%emt 0:04:41]} a6 {[%emt 0:11:09]} 17. Ne4 {[%emt 0:07:00]} Rxc1 {[%emt 0:05:11]} 18. Rxc1 {[%emt 0:00:54]} Nxe4 {[%emt 0:01:28]} 19. Bxe4 {[%emt 0:01:04]} f5 {[%emt 0:01:45]} 20. Bd3 {[%emt 0:02:08]} f4 {[%emt 0:01:26]} 21. Bxg6 {[%emt 0:00:40]} fxe3 {[%emt 0:00:13]} 22. fxe3 {[%emt 0:00:40]} Rxf3 {[%emt 0:01:10]} 23. gxf3 {[%emt 0:02:58]} Qg5+ {[%emt 0:00:09]} 24. Kh1 {[%emt 0:01:39]} Qxg6 {[%emt 0:00:27]} 25. Rg1 {[%emt 0:00:32]} Qh5 {[%emt 0:01:43]} 26. Qg2 {[%emt 0:01:24]} g5 {[%emt 0:03:06]} 27. e4 {[%emt 0:06:28]} Kh8 {[%emt 0:12:57]} 28. Rd1 {[%emt 0:11:21]} Bxh2 {[%emt 0:01:38]} 29. b3 e5 30. dxe5 {[%emt 0:02:08]} Bf4+ {[%emt 0:00:44]} 31. Kg1 {[%emt 0:02:58]} Be3+ {[%emt 0:00:24]} 32. Kf1 {[%emt 0:00:35]} Bh3 {[%emt 0:00:29]} 33. Rd8+ {[%emt 0:01:13]} Kg7 {[%emt 0:00:20]} 34. Rd7+ {[%emt 0:00:16]} Kf8 {[%emt 0:00:13]} 35. e6 {[%emt 0:01:53]} Qxf3+ {[%emt 0:00:46]} 36. Ke1 {[%emt 0:00:25]} Qxg2 {[%emt 0:00:11]} 37. e7+ {[%emt 0:02:41]} Ke8 {[%emt 0:00:55]} 38. Rd8+ {[%emt 0:00:47]} Kxe7 {[%emt 0:00:21]} 39. Rd7+ {[%emt 0:00:20]} Kxd7 {[%emt 0:00:29]} 40. e5 {[%emt 0:00:12]} Qd2# 0-1

[Event "CZE-ch U10 Open 2023"]
[Site "Teplice"]
[Date "2023.03.13"]
[Round "4.4"]
[White "Gernert, Tomas"]
[Black "Kroulik, Stepan"]
[Result "0-1"]
[ECO "B33"]
[WhiteElo "1362"]
[BlackElo "1228"]
[Annotator "NA RC COMBH"]
[PlyCount "92"]
[EventDate "2023.03.09"]
[EventType "swiss"]
[EventCountry "CZE"]
[SourceTitle "playchess.com"]
[Source "ChessBase"]
[SourceQuality "1"]
[TimeControl "40/5400+30:1800+30"]

1. e4 {[%emt 0:00:01]} c5 {[%emt 0:00:08]} 2. Nf3 {[%emt 0:00:04]} Nc6 {[%emt 0:00:11]} 3. d4 {[%emt 0:00:05]} cxd4 {[%emt 0:00:08]} 4. Nxd4 {[%emt 0:00:08]} Nf6 {[%emt 0:00:10]} 5. Nc3 {[%emt 0:01:02]} e6 {[%emt 0:00:20]} 6. Be3 {[%emt 0:02:10]} Bb4 {[%emt 0:00:59]} 7. Qd2 {[%emt 0:01:25]} Nxe4 {[%emt 0:01:57]} 8. Qd3 {[%emt 0:02:31]} Nc5 {[%emt 0:02:32]} 9. Qd1 {[%emt 0:01:21]} O-O {[%emt 0:01:04]} 10. a3 {[%emt 0:02:44]} Bxc3+ {[%emt 0:01:03]} 11. bxc3 {[%emt 0:00:07]} Qa5 {[%emt 0:01:29]} 12. Nxc6 {[%emt 0:04:02]} bxc6 {[%emt 0:00:31]} 13. Qd4 {[%emt 0:02:25]} Na4 {[%emt 0:02:36]} 14. Bd2 {[%emt 0:06:11]} Nb6 {[%emt 0:02:59]} 15. c4 {[%emt 0:00:59]} Qa4 {[%emt 0:03:06]} 16. Bc3 {[%emt 0:03:52]} f6 {[%emt 0:00:47]} 17. Bd3 {[%emt 0:00:41]} d5 {[%emt 0:02:52]} 18. Qh4 {[%emt 0:02:56]} h6 {[%emt 0:00:54]} 19. Bb4 {[%emt 0:13:11]} Rd8 {[%emt 0:03:22]} 20. Qg3 {[%emt 0:05:34]} Nxc4 {[%emt 0:07:15]} 21. Be7 {[%emt 0:01:45]} Rd7 {[%emt 0:01:29]} 22. Bxf6 {[%emt 0:01:08]} Qa5+ {[%emt 0:01:31]} 23. c3 {[%emt 0:00:14]} Rf7 {[%emt 0:00:49]} 24. Be5 {[%emt 0:20:07]} Nxe5 {[%emt 0:01:34]} 25. Qxe5 {[%emt 0:00:59]} c5 {[%emt 0:03:07]} 26. O-O {[%emt 0:00:39]} Qc7 {[%emt 0:03:52]} 27. f4 {[%emt 0:01:12]} Qxe5 {[%emt 0:00:37]} 28. fxe5 {[%emt 0:00:09]} Rxf1+ {[%emt 0:00:15]} 29. Rxf1 {[%emt 0:00:07]} Rb8 {[%emt 0:00:25]} 30. Rf3 {[%emt 0:01:42]} Rb3 {[%emt 0:01:03]} 31. a4 {[%emt 0:00:10]} Ra3 {[%emt 0:00:57]} 32. Bb5 {[%emt 0:00:12]} Ra2 {[%emt 0:02:35]} 33. h3 {[%emt 0:01:16]} a6 {[%emt 0:00:41]} 34. Be8 {[%emt 0:00:15]} Re2 {[%emt 0:00:40]} 35. Rf7 {[%emt 0:01:53]} a5 {[%emt 0:01:51]} 36. Bb5 {[%emt 0:01:25]} Kxf7 {[%emt 0:00:54]} 37. Bxe2 {[%emt 0:00:09]} Kg6 {[%emt 0:00:18]} 38. Bd3+ {[%emt 0:00:14]} Kg5 {[%emt 0:00:34]} 39. g3 {[%emt 0:00:08]} h5 {[%emt 0:02:54]} 40. Kf2 {[%emt 0:00:20]} h4 {[%emt 0:00:51]} 41. Kf3 {[%emt 0:31:10]} Bd7 {[%emt 0:33:21]} 42. Bc2 {[%emt 0:00:23]} hxg3 {[%emt 0:01:10]} 43. Kxg3 {[%emt 0:00:11]} Be8 {[%emt 0:00:49]} 44. h4+ {[%emt 0:00:15]} Kh6 {[%emt 0:01:09]} 45. Kg4 {[%emt 0:01:50]} Bg6 {[%emt 0:02:27]} 46. Bd1 {[%emt 0:00:23]} Bh5+ {[%emt 0:00:19]} 0-1

[Event "CZE-ch U10 Open 2023"]
[Site "Teplice"]
[Date "2023.03.13"]
[Round "4.5"]
[White "Lutskiy, Mikhail"]
[Black "Koutecky, Vaclav"]
[Result "1-0"]
[ECO "B01"]
[WhiteElo "1150"]
[BlackElo "2060"]
[Annotator "TA"]
[PlyCount "57"]
[EventDate "2023.03.09"]
[EventType "swiss"]
[EventCountry "CZE"]
[SourceTitle "playchess.com"]
[Source "ChessBase"]
[SourceQuality "1"]
[TimeControl "40/5400+30:1800+30"]

{[%evp 9,57,-46,-38,-32,-39,-60,0,-31,0,-24,82,89,85,84,77,81,81,82,125,122,120,127,127,108,126,56,210,213,556,506,662,645,688,655,883,881,869,850,970,828,816,775,1272,842,29995,29996,29996,29994,29997,29998]} 1. e4 {[%emt 0:00:07]} d5 {[%emt 0:00:12]} 2. exd5 {[%emt 0:01:05]} Nf6 {[%emt 0:00:09]} 3. c4 {[%emt 0:00:22]} Bf5 {[%emt 0:10:04]} 4. h3 {[%emt 0:01:37]} c6 {[%emt 0:01:24]} 5. dxc6 Nxc6 {[%emt 0:00:14]} 6. Nf3 {[%emt 0:03:51] B01: Scandinavian Defence.} e5 {[%emt 0:01:06][%mdl 1024] ...Nb4 is the strong threat. Black has compensation.} 7. Nc3 {[%emt 0:03:01]} Bc5 {[%emt 0:01:38]} (7... e4 $15 8. Nh4 Be6) 8. Be2 {[%emt 0:00:30] The position is equal.} O-O {[%emt 0:01:17]} 9. O-O {[%emt 0:00:53] [#]} Qb6 $146 {[%emt 0:01:20]} (9... e4 $11 {remains equal.} 10. Nh4 Qd7) ({Predecessor:} 9... Re8 10. d3 h6 11. Be3 Nd4 12. Bxd4 Bxd4 13. Qb3 Bc5 14. Rad1 Re6 15. Nb5 Rb6 {1-0 Tao,R (1659)-Pobereshnikova,A (1547) Toronto NAYCC U14 Girls 2013 (9)}) 10. Na4 $16 {[%emt 0:00:44]} Qa5 {[%emt 0:01:19]} 11. Nxc5 {[%emt 0:01:03]} Qxc5 {[%emt 0:00:20]} 12. d3 {[%emt 0:00:44]} Rad8 {[%emt 0:01:03]} 13. Qb3 {[%emt 0:00:17]} h6 {[%emt 0:02:53]} 14. Be3 $36 {[%emt 0:02:14][%mdl 2048] White has strong initiative.} Qe7 {[%emt 0:00:55]} 15. Rfe1 {[%emt 0:02:32]} Rd7 {[%emt 0:01:35]} 16. Rad1 {[%emt 0:00:38]} Rfd8 {[%emt 0:02:24]} 17. a3 {[%emt 0:09:54]} (17. Qc3 $16) 17... Nh5 $2 {[%emt 0:05:11] [#] Loses the game.} ({Black should play} 17... Nh7 $14) 18. g4 $18 {[%emt 0:03:03]} Na5 $2 {[%emt 0:04:11]} (18... Be6 19. gxh5 Bxh3) 19. Qc3 {[%emt 0:01:11]} e4 {[%emt 0:01:51]} 20. dxe4 {[%emt 0:01:53]} ({Not} 20. gxh5 exf3 21. Bxf3 (21. Qxa5 fxe2 22. Qxf5 exd1=N $15) 21... Nc6 $18) 20... Rxd1 {[%emt 0:02:26]} 21. Bxd1 {[%emt 0:02:11]} Rxd1 {[%emt 0:01:45]} 22. Rxd1 {[%emt 0:01:02]} Bxe4 {[%emt 0:00:16]} 23. Qxa5 {[%emt 0:00:52] [#] Rd8+ would be deadly.} b6 {[%emt 0:02:43]} 24. Qxh5 {[%emt 0:00:45]} Bxf3 {[%emt 0:00:19]} 25. Re1 {[%emt 0:00:42]} Qc7 26. Bd2 {[%emt 0:02:38] Intending Re8+ and mate.} a6 {[%emt 0:04:08]} 27. Re8+ {White mates.} Kh7 {[%emt 0:00:29]} 28. Qf5+ {[%emt 0:00:39]} g6 {[%emt 0:01:27]} 29. Qf6 {Weighted Error Value: White=0.19 (very precise) /Black=1.06} 1-0

[Event "CZE-ch U10 Open 2023"]
[Site "Teplice"]
[Date "2023.03.13"]
[Round "4.6"]
[White "Vo, Daniel"]
[Black "Galia, Simon"]
[Result "1-0"]
[ECO "C42"]
[WhiteElo "1440"]
[BlackElo "1071"]
[Annotator "NA RC COMBH"]
[PlyCount "95"]
[EventDate "2023.03.09"]
[EventType "swiss"]
[EventCountry "CZE"]
[SourceTitle "playchess.com"]
[Source "ChessBase"]
[SourceQuality "1"]
[TimeControl "40/5400+30:1800+30"]

1. e4 e5 {[%emt 0:00:20]} 2. Nf3 {[%emt 0:10:07]} Nf6 {[%emt 0:00:42]} 3. Nc3 {[%emt 0:00:20]} Bb4 {[%emt 0:01:14]} 4. Bc4 {[%emt 0:00:33]} d6 {[%emt 0:02:57]} 5. a3 {[%emt 0:00:30]} Ba5 {[%emt 0:01:37]} 6. b4 {[%emt 0:00:22]} Bb6 {[%emt 0:01:49]} 7. Bb2 {[%emt 0:00:35]} Bg4 {[%emt 0:03:04]} 8. O-O {[%emt 0:00:46]} O-O {[%emt 0:02:20]} 9. h3 {[%emt 0:00:55]} Bh5 {[%emt 0:01:59]} 10. Re1 {[%emt 0:00:46]} Re8 {[%emt 0:02:44]} 11. Be2 {[%emt 0:00:39]} Nbd7 {[%emt 0:01:52]} 12. d4 {[%emt 0:00:59]} Bxf3 {[%emt 0:05:54]} 13. Bxf3 {[%emt 0:00:18]} Bxd4 {[%emt 0:01:27]} 14. Qe2 {[%emt 0:02:06]} Nf8 {[%emt 0:03:14]} 15. Na4 {[%emt 0:00:28]} Bxb2 {[%emt 0:01:37]} 16. Nxb2 {[%emt 0:00:13]} Ne6 {[%emt 0:01:59]} 17. c3 {[%emt 0:01:08]} Nf4 {[%emt 0:02:15]} 18. Qd2 {[%emt 0:00:49]} c6 {[%emt 0:04:35]} 19. Nd3 {[%emt 0:00:47]} Nxd3 {[%emt 0:01:45]} 20. Qxd3 {[%emt 0:01:27]} d5 {[%emt 0:02:11]} 21. Qc2 {[%emt 0:02:06]} Qd6 {[%emt 0:02:36]} 22. Rad1 {[%emt 0:01:08]} Rad8 {[%emt 0:02:34]} 23. exd5 {[%emt 0:00:23]} cxd5 {[%emt 0:01:31]} 24. c4 {[%emt 0:01:01]} Qc6 {[%emt 0:01:39]} 25. c5 {[%emt 0:01:11]} b6 {[%emt 0:02:30]} 26. Be2 {[%emt 0:02:13]} Rc8 {[%emt 0:03:19]} 27. a4 {[%emt 0:00:30]} Re7 {[%emt 0:01:04]} 28. Bb5 {[%emt 0:00:24]} Qc7 {[%emt 0:01:26]} 29. Rc1 {[%emt 0:00:42]} bxc5 {[%emt 0:02:36]} 30. bxc5 {[%emt 0:00:16]} d4 {[%emt 0:02:01]} 31. c6 {[%emt 0:02:34]} Re6 {[%emt 0:03:48]} 32. f4 {[%emt 0:05:09]} Qb6 {[%emt 0:02:08]} 33. Kh1 {[%emt 0:00:19]} a6 {[%emt 0:00:50]} 34. fxe5 {[%emt 0:01:29]} axb5 {[%emt 0:02:30]} 35. exf6 {[%emt 0:01:23]} Rxf6 {[%emt 0:02:27]} 36. axb5 {[%emt 0:01:13]} Qxb5 {[%emt 0:01:28]} 37. c7 {[%emt 0:00:52]} g6 {[%emt 0:01:19]} 38. Rb1 {[%emt 0:00:55]} Qd7 {[%emt 0:01:09]} 39. Rb8 {[%emt 0:00:23]} Rd6 {[%emt 0:01:50]} 40. Rxc8+ {[%emt 0:00:47]} Qxc8 {[%emt 0:01:16]} 41. Rb1 {[%emt 0:31:11]} d3 {[%emt 0:33:52]} 42. Qc5 {[%emt 0:00:45]} Rd8 {[%emt 0:04:19]} 43. cxd8=Q+ {[%emt 0:03:45]} Qxd8 {[%emt 0:00:41]} 44. Qb6 {[%emt 0:00:18]} Qd7 {[%emt 0:00:38]} 45. Qb5 {[%emt 0:00:29]} Qd6 {[%emt 0:00:20]} 46. Qb8+ {[%emt 0:00:06]} Qf8 {[%emt 0:01:07]} 47. Qxf8+ {[%emt 0:00:06]} Kxf8 {[%emt 0:00:15]} 48. Rd1 {[%emt 0:00:02]} 1-0

[Event "CZE-ch U10 Open 2023"]
[Site "Teplice"]
[Date "2023.03.13"]
[Round "4.7"]
[White "Fadrny, Jachym"]
[Black "Moravec, Rene"]
[Result "0-1"]
[ECO "B01"]
[WhiteElo "1279"]
[BlackElo "1216"]
[Annotator "NA RC COMBH"]
[PlyCount "28"]
[EventDate "2023.03.09"]
[EventType "swiss"]
[EventCountry "CZE"]
[SourceTitle "playchess.com"]
[Source "ChessBase"]
[SourceQuality "1"]
[TimeControl "40/5400+30:1800+30"]

1. e4 {[%emt 0:00:08]} d5 {[%emt 0:00:35]} 2. exd5 {[%emt 0:00:07]} Nf6 {[%emt 0:00:32]} 3. c4 {[%emt 0:00:22]} e6 {[%emt 0:00:51]} 4. dxe6 {[%emt 0:00:29]} Bxe6 {[%emt 0:00:09]} 5. Nc3 {[%emt 0:00:21]} Bc5 {[%emt 0:00:25]} 6. Nf3 {[%emt 0:00:37]} Nc6 {[%emt 0:00:19]} 7. a3 {[%emt 0:02:03]} O-O {[%emt 0:00:19]} 8. b4 {[%emt 0:01:02]} Bd4 {[%emt 0:00:12]} 9. Bb2 {[%emt 0:07:58]} Re8 {[%emt 0:02:14]} 10. d3 {[%emt 0:13:28]} Ng4 {[%emt 0:04:34]} 11. Nxd4 {[%emt 0:05:33]} Qxd4 {[%emt 0:01:21]} 12. Qd2 {[%emt 0:09:13]} Bxc4+ {[%emt 0:02:22]} 13. Ne4 {[%emt 0:00:51]} Qb6 {[%emt 0:01:34]} 14. Qg5 {[%emt 0:03:44]} Qxf2+ {[%emt 0:00:41]} 0-1

[Event "CZE-ch U10 Open 2023"]
[Site "Teplice"]
[Date "2023.03.13"]
[Round "4.8"]
[White "Zelenka, Tomas"]
[Black "Bucek, Vit"]
[Result "0-1"]
[ECO "B21"]
[WhiteElo "1272"]
[BlackElo "1198"]
[Annotator "NA RC COMBH"]
[PlyCount "101"]
[EventDate "2023.03.09"]
[EventType "swiss"]
[EventCountry "CZE"]
[SourceTitle "playchess.com"]
[Source "ChessBase"]
[SourceQuality "1"]
[TimeControl "40/5400+30:1800+30"]

1. e4 {[%emt 0:00:03]} c5 {[%emt 0:00:06]} 2. d4 {[%emt 0:00:06]} cxd4 {[%emt 0:00:04]} 3. c3 {[%emt 0:00:06]} d3 {[%emt 0:00:08]} 4. Bxd3 {[%emt 0:00:08]} Nc6 {[%emt 0:00:05]} 5. Nf3 {[%emt 0:00:12]} g6 {[%emt 0:00:12]} 6. O-O {[%emt 0:00:11]} Bg7 {[%emt 0:00:10]} 7. Be3 {[%emt 0:01:40]} d6 {[%emt 0:00:10]} 8. Nbd2 {[%emt 0:01:12]} Nf6 {[%emt 0:00:34]} 9. Nc4 {[%emt 0:00:45]} Bg4 {[%emt 0:08:02]} 10. h3 {[%emt 0:00:20]} Bxf3 {[%emt 0:00:21]} 11. Qxf3 {[%emt 0:00:13]} O-O {[%emt 0:07:19]} 12. Rad1 {[%emt 0:01:05]} Rc8 {[%emt 0:04:31]} 13. Bc2 {[%emt 0:01:10]} Qc7 {[%emt 0:03:49]} 14. Rfe1 {[%emt 0:02:21]} Nd7 {[%emt 0:14:45]} 15. Qg4 {[%emt 0:04:18]} Nce5 {[%emt 0:04:46]} 16. Nxe5 {[%emt 0:01:08]} Nxe5 {[%emt 0:00:08]} 17. Qh4 {[%emt 0:01:03]} Rfe8 {[%emt 0:05:09]} 18. f4 {[%emt 0:10:02]} Nc4 {[%emt 0:01:20]} 19. f5 {[%emt 0:00:25]} Nxb2 {[%emt 0:02:44]} 20. fxg6 {[%emt 0:01:41]} fxg6 {[%emt 0:04:11]} 21. Bb3+ {[%emt 0:00:43]} Kh8 {[%emt 0:00:26]} 22. Rd5 {[%emt 0:04:54]} Qxc3 {[%emt 0:05:44]} 23. Rd2 {[%emt 0:04:52]} Qf6 {[%emt 0:02:15]} 24. Qxf6 {[%emt 0:03:35]} Bxf6 {[%emt 0:00:10]} 25. Bd4 {[%emt 0:00:18]} Nc4 {[%emt 0:00:40]} 26. Bxf6+ {[%emt 0:00:53]} exf6 {[%emt 0:00:23]} 27. Bxc4 {[%emt 0:00:14]} Rxc4 {[%emt 0:00:22]} 28. Rxd6 {[%emt 0:00:03]} Rcxe4 {[%emt 0:00:45]} 29. Rxe4 {[%emt 0:00:09]} Rxe4 {[%emt 0:00:06]} 30. Rxf6 {[%emt 0:00:11]} Kg7 {[%emt 0:00:47]} 31. Rd6 {[%emt 0:00:11]} Re7 {[%emt 0:00:08]} 32. Kf2 {[%emt 0:00:17]} h5 {[%emt 0:00:50]} 33. Kg3 {[%emt 0:00:47]} Kh6 {[%emt 0:00:33]} 34. Kf4 {[%emt 0:05:15]} Re2 {[%emt 0:01:00]} 35. g4 {[%emt 0:00:16]} Rxa2 {[%emt 0:01:25]} 36. Rd7 {[%emt 0:00:23]} Ra4+ {[%emt 0:00:33]} 37. Kg3 {[%emt 0:00:18]} b5 {[%emt 0:00:48]} 38. Kh4 {[%emt 0:00:43]} g5+ {[%emt 0:00:41]} 39. Kg3 {[%emt 0:00:12]} h4+ {[%emt 0:00:41]} 40. Kg2 {[%emt 0:00:15]} b4 {[%emt 0:00:31]} 41. Rd6+ {[%emt 0:30:19]} Kg7 {[%emt 0:30:42]} 42. Rd5 {[%emt 0:01:08]} Kf6 {[%emt 0:00:23]} 43. Rd4 {[%emt 0:00:25]} Ra2+ {[%emt 0:00:26]} 44. Kf3 {[%emt 0:00:17]} b3 {[%emt 0:00:18]} 45. Rb4 {[%emt 0:00:45]} b2 {[%emt 0:00:25]} 46. Ke3 {[%emt 0:00:15]} a5 {[%emt 0:00:18]} 47. Rb6+ {[%emt 0:00:13]} Ke7 {[%emt 0:00:30]} 48. Kd3 {[%emt 0:00:11]} a4 {[%emt 0:00:21]} 49. Kc2 {[%emt 0:02:04]} a3 {[%emt 0:00:15]} 50. Rb5 {[%emt 0:00:44]} Ra1 {[%emt 0:00:19]} 51. Rb3 {[%emt 0:00:57]} 0-1

[Event "CZE-ch U10 Open 2023"]
[Site "Teplice"]
[Date "2023.03.13"]
[Round "4.9"]
[White "Vorlik, Jachym"]
[Black "Kupka, Frantisek"]
[Result "0-1"]
[ECO "D02"]
[WhiteElo "1204"]
[BlackElo "1988"]
[Annotator "TA"]
[PlyCount "21"]
[EventDate "2023.03.09"]
[EventType "swiss"]
[EventCountry "CZE"]
[SourceTitle "playchess.com"]
[Source "ChessBase"]
[SourceQuality "1"]
[TimeControl "40/5400+30:1800+30"]

{[%evp 9,21,20,42,20,86,20,84,81,83,35,70,29,144,0]} 1. d4 {[%emt 0:53:18]} d5 {[%emt 0:00:07]} 2. Bf4 {[%emt 0:00:20]} Nf6 {[%emt 0:00:16]} 3. Nf3 {[%emt 0:00:20]} Bf5 {[%emt 0:01:12]} 4. e3 {[%emt 0:00:22]} c5 {[%emt 0:00:54]} 5. Nbd2 {[%emt 0:01:25]} Nc6 {[%emt 0:01:07]} 6. Bb5 {[%emt 0:01:02] [#] D02: 1 d4 d5 2 Nf3 sidelines, including 2...Nf6 3 g3 and 2...Nf6 3 Bf4.} Rc8 $146 {[%emt 0:01:23]} (6... cxd4 $11 7. Nxd4 Bd7) ({Predecessor:} 6... cxd4 7. exd4 a6 8. Bxc6+ bxc6 9. Ne5 Qb6 10. c4 Qxd4 11. Qa4 Rc8 12. Bg3 h5 {½-½ Ivanisevic,I (2499)-Van Wely,L (2593) Dubai bin Rashid Cup Blitz 2021 (7)}) 7. O-O {[%emt 0:00:28]} (7. dxc5 $16 Bd7 8. c3) 7... a6 {[%emt 0:01:00] [#]} (7... cxd4 $11 {remains equal.} 8. Nxd4 Bd7) 8. Bxc6+ $1 $16 {[%emt 0:04:35]} Rxc6 {[%emt 0:01:03]} 9. Re1 {[%emt 0:02:03]} (9. c4 $16) 9... e6 {[%emt 0:01:54]} 10. c3 {[%emt 0:01:40]} Qb6 {[%emt 0:01:47]} (10... Bd6 $11 {keeps the balance.}) 11. b3 {[%emt 0:02:20][%mdl 32768] Weighted Error Value: White=0.33/Black=0.67. Loss on time!?} ({White should try} 11. Ne5 $16) 0-1